[Event "Mitropa Cup Women 2024"]
[Site "Apolda"]
[Date "2024.02.15"]
[Round "1.15"]
[White "Navrotescu, Andreea"]
[Black "Mayrhuber, Nikola"]
[Result "1/2-1/2"]
[ECO "A18"]
[WhiteElo "2222"]
[BlackElo "2009"]
[Annotator "NA RC"]
[PlyCount "91"]
[EventDate "2024.02.15"]
[EventType "team-tourn"]
[EventCountry "GER"]
[SourceTitle "playchess.com"]
[Source "ChessBase"]
[SourceQuality "1"]
[WhiteTeam "France"]
[BlackTeam "Austria"]
[WhiteTeamCountry "FRA"]
[BlackTeamCountry "AUT"]
[TimeControl "40/5400+30:1800+30"]

1. c4 {[%emt 0:00:03]} Nf6 {[%emt 0:00:05]} 2. Nc3 {[%emt 0:00:07]} e6 {[%emt 0:00:04]} 3. e4 {[%emt 0:00:08]} d5 {[%emt 0:00:13]} 4. e5 {[%emt 0:00:09]} d4 {[%emt 0:00:06]} 5. exf6 {[%emt 0:00:09]} dxc3 {[%emt 0:00:05]} 6. bxc3 {[%emt 0:00:09]} Qxf6 {[%emt 0:00:06]} 7. d4 {[%emt 0:00:19]} e5 {[%emt 0:00:17]} 8. Nf3 {[%emt 0:06:04]} exd4 {[%emt 0:00:50]} 9. Bg5 {[%emt 0:06:03]} Qe6+ {[%emt 0:00:35]} 10. Be2 {[%emt 0:00:34]} Be7 {[%emt 0:01:14]} 11. Bxe7 {[%emt 0:08:30]} d3 {[%emt 0:02:54]} 12. O-O {[%emt 0:07:18]} Qxe7 {[%emt 0:01:53]} 13. Bxd3 {[%emt 0:00:27]} O-O {[%emt 0:00:56]} 14. Qc2 {[%emt 0:04:07]} h6 {[%emt 0:11:37]} 15. Rfe1 {[%emt 0:02:42]} Qf6 {[%emt 0:00:37]} 16. Re3 {[%emt 0:07:04]} Nd7 {[%emt 0:04:28]} 17. Nd4 {[%emt 0:06:44]} Ne5 {[%emt 0:12:55]} 18. Bf1 {[%emt 0:13:34]} c5 {[%emt 0:06:08]} 19. Nb5 {[%emt 0:00:59]} Bf5 {[%emt 0:02:29]} 20. Qe2 {[%emt 0:02:08]} Ng4 {[%emt 0:06:46]} 21. Rg3 {[%emt 0:00:28]} Rae8 {[%emt 0:08:10]} 22. Qf3 {[%emt 0:00:34]} Re4 {[%emt 0:04:40]} 23. Nc7 {[%emt 0:25:22]} Ne5 {[%emt 0:11:05]} 24. Qd1 {[%emt 0:00:02]} Be6 {[%emt 0:06:10]} 25. Nd5 {[%emt 0:00:52]} Bxd5 {[%emt 0:04:38]} 26. Qxd5 {[%emt 0:02:06]} Rf4 {[%emt 0:00:34]} 27. Qxc5 {[%emt 0:05:53]} b6 {[%emt 0:00:02]} 28. Qe3 {[%emt 0:00:09]} Ng4 {[%emt 0:01:24]} 29. Qe2 {[%emt 0:00:16]} Nxf2 {[%emt 0:03:04]} 30. Re1 {[%emt 0:01:14]} Ne4 {[%emt 0:01:22]} 31. Re3 {[%emt 0:00:22]} Rf2 {[%emt 0:02:41]} 32. Qg4 {[%emt 0:00:18]} Rf4 {[%emt 0:03:30]} 33. Qe2 {[%emt 0:00:28]} Rf2 {[%emt 0:03:11]} 34. Qg4 {[%emt 0:00:28]} Ng5 {[%emt 0:00:09]} 35. h4 {[%emt 0:01:04]} Ne6 {[%emt 0:01:29]} 36. Qg3 {[%emt 0:00:49]} Rxa2 {[%emt 0:00:44]} 37. Rf3 {[%emt 0:00:28]} Qe7 {[%emt 0:00:14]} 38. Bd3 {[%emt 0:00:38]} Qc5+ {[%emt 0:00:23]} 39. Kh1 {[%emt 0:00:03]} a5 {[%emt 0:01:31]} 40. Rf6 {[%emt 0:00:54]} Qh5 {[%emt 0:00:37]} 41. Rexe6 {[%emt 0:17:45]} fxe6 {[%emt 0:05:02]} 42. Rxf8+ {[%emt 0:00:09]} Kxf8 {[%emt 0:00:07]} 43. Qd6+ {[%emt 0:00:04]} Kf7 {[%emt 0:08:45]} 44. Qd7+ {[%emt 0:00:21]} Kf8 {[%emt 0:01:25]} 45. Qd6+ {[%emt 0:00:07]} Kf7 {[%emt 0:01:17]} 46. Qd7+ {[%emt 0:00:08]} 1/2-1/2

[Event "Mitropa Cup Women 2024"]
[Site "Apolda"]
[Date "2024.02.15"]
[Round "1.16"]
[White "Katter, Katharina"]
[Black "Blanquet, Camille"]
[Result "1/2-1/2"]
[ECO "D38"]
[WhiteElo "1831"]
[BlackElo "2023"]
[Annotator "NA RC"]
[PlyCount "55"]
[EventDate "2024.02.15"]
[EventType "team-tourn"]
[EventCountry "GER"]
[SourceTitle "playchess.com"]
[Source "ChessBase"]
[SourceQuality "1"]
[WhiteTeam "Austria"]
[BlackTeam "France"]
[WhiteTeamCountry "AUT"]
[BlackTeamCountry "FRA"]
[TimeControl "40/5400+30:1800+30"]

1. d4 {[%emt 0:00:04]} Nf6 {[%emt 0:00:11]} 2. Nf3 {[%emt 0:00:14]} e6 {[%emt 0:00:10]} 3. c4 {[%emt 0:00:18]} d5 {[%emt 0:00:12]} 4. Nc3 {[%emt 0:00:18]} Bb4 {[%emt 0:00:29]} 5. Qa4+ {[%emt 0:00:21]} Nc6 {[%emt 0:00:08]} 6. e3 {[%emt 0:00:26]} O-O {[%emt 0:01:17]} 7. Bd2 {[%emt 0:00:29]} dxc4 {[%emt 0:00:36]} 8. Bxc4 {[%emt 0:00:18]} Bd6 {[%emt 0:00:15]} 9. Qc2 {[%emt 0:00:43]} e5 {[%emt 0:00:35]} 10. dxe5 {[%emt 0:00:25]} Nxe5 {[%emt 0:00:13]} 11. Nxe5 {[%emt 0:00:32]} Bxe5 {[%emt 0:00:07]} 12. f4 {[%emt 0:00:18]} Bxc3 {[%emt 0:01:05]} 13. Bxc3 {[%emt 0:00:40]} Ng4 {[%emt 0:00:31]} 14. Bd4 {[%emt 0:01:05]} c5 {[%emt 0:02:03]} 15. Bxc5 {[%emt 0:00:55]} Re8 {[%emt 0:00:04]} 16. O-O {[%emt 0:01:41]} b6 {[%emt 0:01:31]} 17. Bd4 {[%emt 0:00:58]} Nxe3 {[%emt 0:00:56]} 18. Bxe3 {[%emt 0:00:15]} Rxe3 {[%emt 0:00:06]} 19. Rad1 {[%emt 0:04:10]} Qe7 {[%emt 0:07:37]} 20. f5 {[%emt 0:09:33]} Bb7 {[%emt 0:09:14]} 21. f6 {[%emt 0:15:45]} gxf6 {[%emt 0:10:08]} 22. Qf5 {[%emt 0:09:09]} Qe4 {[%emt 0:29:06]} 23. Bxf7+ {[%emt 0:07:04]} Kxf7 {[%emt 0:02:29]} 24. Qxf6+ {[%emt 0:15:33]} Kg8 {[%emt 0:01:45]} 25. Qf7+ {[%emt 0:14:56]} Kh8 {[%emt 0:00:12]} 26. Qf6+ {[%emt 0:01:59]} Kg8 {[%emt 0:00:06]} 27. Qf7+ {[%emt 0:00:35]} Kh8 {[%emt 0:00:05]} 28. Qf6+ {[%emt 0:00:06]} 1/2-1/2

[Event "Mitropa Cup Women 2024"]
[Site "Apolda"]
[Date "2024.02.15"]
[Round "1.17"]
[White "Urh, Zala"]
[Black "Novosadova, Kristyna"]
[Result "0-1"]
[ECO "A57"]
[WhiteElo "2290"]
[BlackElo "2188"]
[Annotator "NA RC"]
[PlyCount "70"]
[EventDate "2024.02.15"]
[EventType "team-tourn"]
[EventCountry "GER"]
[SourceTitle "playchess.com"]
[Source "ChessBase"]
[SourceQuality "1"]
[WhiteTeam "Slovenia"]
[BlackTeam "Czech Republic"]
[WhiteTeamCountry "SLO"]
[BlackTeamCountry "CZE"]
[TimeControl "40/5400+30:1800+30"]

1. d4 {[%emt 0:00:09]} Nf6 {[%emt 0:00:13]} 2. c4 {[%emt 0:00:13]} c5 {[%emt 0:00:10]} 3. d5 {[%emt 0:01:23]} b5 {[%emt 0:00:30]} 4. cxb5 {[%emt 0:05:36]} a6 {[%emt 0:00:08]} 5. e3 {[%emt 0:00:16]} g6 {[%emt 0:02:09]} 6. Nc3 {[%emt 0:01:53]} Bg7 {[%emt 0:05:28]} 7. Nf3 {[%emt 0:03:20]} O-O {[%emt 0:03:47]} 8. a4 {[%emt 0:05:44]} d6 {[%emt 0:01:13]} 9. bxa6 {[%emt 0:21:22]} Nxa6 {[%emt 0:04:53]} 10. Bc4 {[%emt 0:04:58]} Nb4 {[%emt 0:01:41]} 11. O-O {[%emt 0:01:01]} Bf5 {[%emt 0:02:01]} 12. Bd2 {[%emt 0:05:44]} Bc2 {[%emt 0:03:32]} 13. Qe2 {[%emt 0:03:53]} Nd7 {[%emt 0:05:40]} 14. e4 {[%emt 0:10:12]} f5 {[%emt 0:27:17]} 15. Ng5 {[%emt 0:04:31]} Ne5 {[%emt 0:11:05]} 16. Bb5 {[%emt 0:01:20]} Qc8 {[%emt 0:08:41]} 17. f4 {[%emt 0:07:48]} Bd3 {[%emt 0:05:43]} 18. Bxd3 {[%emt 0:04:31]} Nexd3 {[%emt 0:00:02]} 19. Ne6 {[%emt 0:00:01]} Bd4+ {[%emt 0:03:24]} 20. Be3 {[%emt 0:07:36]} Bxe3+ {[%emt 0:00:16]} 21. Qxe3 {[%emt 0:00:01]} c4 {[%emt 0:03:57]} 22. Qh3 {[%emt 0:04:27]} Rf6 {[%emt 0:04:42]} 23. Rf3 {[%emt 0:05:09]} Rxe6 {[%emt 0:00:20]} 24. dxe6 {[%emt 0:00:05]} Qc5+ {[%emt 0:00:08]} 25. Kf1 {[%emt 0:00:47]} fxe4 {[%emt 0:03:38]} 26. Nxe4 {[%emt 0:00:08]} Qd4 {[%emt 0:00:30]} 27. Ng5 {[%emt 0:01:18]} h5 {[%emt 0:00:09]} 28. Rb1 {[%emt 0:00:24]} Rxa4 {[%emt 0:01:51]} 29. Qg3 {[%emt 0:00:31]} c3 {[%emt 0:01:10]} 30. Nf7 {[%emt 0:00:30]} c2 {[%emt 0:00:21]} 31. Qxg6+ {[%emt 0:00:33]} Kf8 {[%emt 0:00:21]} 32. Re1 {[%emt 0:00:25]} Nxe1 {[%emt 0:00:55]} 33. Ne5 {[%emt 0:00:08]} Qg1+ {[%emt 0:00:17]} 34. Kxg1 {[%emt 0:00:08]} Nxf3+ {[%emt 0:00:09]} 35. Kf2 {[%emt 0:01:19]} Nxe5 {[%emt 0:00:02]} 0-1

[Event "Mitropa Cup Women 2024"]
[Site "Apolda"]
[Date "2024.02.15"]
[Round "1.18"]
[White "Koubova, Anna Marie"]
[Black "Shpanko, Nadiia"]
[Result "1-0"]
[ECO "A17"]
[WhiteElo "2100"]
[BlackElo "2179"]
[Annotator "NA RC"]
[PlyCount "67"]
[EventDate "2024.02.15"]
[EventType "team-tourn"]
[EventCountry "GER"]
[SourceTitle "playchess.com"]
[Source "ChessBase"]
[SourceQuality "1"]
[WhiteTeam "Czech Republic"]
[BlackTeam "Slovenia"]
[WhiteTeamCountry "CZE"]
[BlackTeamCountry "SLO"]
[TimeControl "40/5400+30:1800+30"]

1. Nf3 {[%emt 0:00:11]} d5 {[%emt 0:00:15]} 2. e3 {[%emt 0:00:23]} Nf6 {[%emt 0:01:09]} 3. c4 {[%emt 0:00:23]} e6 {[%emt 0:02:18]} 4. Nc3 {[%emt 0:00:44]} a6 {[%emt 0:01:35]} 5. b3 {[%emt 0:00:56]} c5 {[%emt 0:00:48]} 6. cxd5 {[%emt 0:02:19]} exd5 {[%emt 0:00:50]} 7. d4 {[%emt 0:00:52]} Nc6 {[%emt 0:01:27]} 8. Be2 {[%emt 0:03:43]} cxd4 {[%emt 0:24:57]} 9. Nxd4 {[%emt 0:01:16]} Bb4 {[%emt 0:00:06]} 10. Bb2 {[%emt 0:17:35]} Ne4 {[%emt 0:06:44]} 11. Rc1 {[%emt 0:00:46]} Qa5 {[%emt 0:02:48]} 12. Nxc6 {[%emt 0:00:44]} bxc6 {[%emt 0:00:27]} 13. Qd4 {[%emt 0:00:37]} O-O {[%emt 0:04:13]} 14. O-O {[%emt 0:01:14]} Nxc3 {[%emt 0:04:22]} 15. Rxc3 {[%emt 0:01:39]} f6 {[%emt 0:06:28]} 16. Rxc6 {[%emt 0:05:34]} Bd7 {[%emt 0:05:46]} 17. Rxa6 {[%emt 0:02:58]} Rxa6 {[%emt 0:00:58]} 18. Bxa6 {[%emt 0:00:06]} Qxa6 {[%emt 0:01:53]} 19. Qxb4 {[%emt 0:00:14]} Qxa2 {[%emt 0:00:42]} 20. Bd4 {[%emt 0:11:41]} Bf5 {[%emt 0:03:42]} 21. Ra1 {[%emt 0:13:24]} Qc2 {[%emt 0:01:58]} 22. Qb7 {[%emt 0:00:56]} Be6 {[%emt 0:01:54]} 23. h3 {[%emt 0:04:12]} Qc8 {[%emt 0:09:12]} 24. Ra7 {[%emt 0:08:40]} Qxb7 {[%emt 0:04:37]} 25. Rxb7 {[%emt 0:00:06]} Rc8 {[%emt 0:00:11]} 26. b4 {[%emt 0:01:47]} Rc1+ {[%emt 0:00:13]} 27. Kh2 {[%emt 0:00:06]} Bc8 {[%emt 0:00:17]} 28. Rb8 {[%emt 0:00:34]} Kf7 {[%emt 0:00:17]} 29. b5 {[%emt 0:02:02]} Bd7 {[%emt 0:00:47]} 30. b6 {[%emt 0:00:38]} Rb1 {[%emt 0:00:16]} 31. Rb7 {[%emt 0:02:41]} Ke6 {[%emt 0:00:45]} 32. Rc7 {[%emt 0:01:57]} h5 {[%emt 0:01:22]} 33. Bc5 {[%emt 0:00:56]} Bb5 {[%emt 0:03:49]} 34. b7 {[%emt 0:03:49]} 1-0

[Event "Mitropa Cup Women 2024"]
[Site "Apolda"]
[Date "2024.02.15"]
[Round "1.19"]
[White "Vidic, Teja"]
[Black "Lhotska, Anna"]
[Result "0-1"]
[ECO "B51"]
[WhiteElo "2132"]
[BlackElo "2053"]
[Annotator "NA RC"]
[PlyCount "80"]
[EventDate "2024.02.15"]
[EventType "team-tourn"]
[EventCountry "GER"]
[SourceTitle "playchess.com"]
[Source "ChessBase"]
[SourceQuality "1"]
[WhiteTeam "Slovenia"]
[BlackTeam "Czech Republic"]
[WhiteTeamCountry "SLO"]
[BlackTeamCountry "CZE"]
[TimeControl "40/5400+30:1800+30"]

1. e4 {[%emt 0:00:04]} c5 {[%emt 0:00:21]} 2. Nf3 {[%emt 0:00:08]} d6 {[%emt 0:00:07]} 3. Bb5+ {[%emt 0:00:10]} Nd7 {[%emt 0:00:07]} 4. O-O {[%emt 0:00:16]} a6 {[%emt 0:00:07]} 5. Bd3 {[%emt 0:00:04]} Ngf6 {[%emt 0:00:22]} 6. c3 {[%emt 0:00:09]} e6 {[%emt 0:00:12]} 7. Bc2 {[%emt 0:00:58]} b5 {[%emt 0:00:20]} 8. d4 {[%emt 0:01:36]} Qc7 {[%emt 0:00:31]} 9. a4 {[%emt 0:05:24]} b4 {[%emt 0:04:21]} 10. Re1 {[%emt 0:03:54]} Be7 {[%emt 0:05:25]} 11. e5 {[%emt 0:06:23]} dxe5 {[%emt 0:03:45]} 12. dxe5 {[%emt 0:00:10]} Nd5 {[%emt 0:00:14]} 13. c4 {[%emt 0:09:33]} N5b6 {[%emt 0:00:08]} 14. Qd3 {[%emt 0:00:07]} Bb7 {[%emt 0:04:09]} 15. a5 {[%emt 0:07:47]} Nc8 {[%emt 0:00:14]} 16. Bf4 {[%emt 0:00:08]} Na7 {[%emt 0:04:22]} 17. Nbd2 {[%emt 0:02:43]} O-O-O {[%emt 0:00:56]} 18. Ne4 {[%emt 0:05:28]} Kb8 {[%emt 0:02:17]} 19. Qe3 {[%emt 0:05:23]} Ba8 {[%emt 0:07:01]} 20. Nfg5 {[%emt 0:08:58]} Rdf8 {[%emt 0:06:21]} 21. Nd6 {[%emt 0:07:18]} Bxg5 {[%emt 0:02:06]} 22. Bxg5 {[%emt 0:00:05]} Nc6 {[%emt 0:15:41]} 23. Rad1 {[%emt 0:07:56]} h6 {[%emt 0:04:42]} 24. Bh4 {[%emt 0:02:09]} g5 {[%emt 0:06:00]} 25. Bg3 {[%emt 0:00:05]} h5 {[%emt 0:02:53]} 26. Qxg5 {[%emt 0:10:17]} h4 {[%emt 0:01:35]} 27. Bxh4 {[%emt 0:00:17]} Rfg8 {[%emt 0:00:38]} 28. Qf4 {[%emt 0:00:29]} Nd4 {[%emt 0:02:30]} 29. Be4 {[%emt 0:04:43]} Bxe4 {[%emt 0:00:47]} 30. Rxe4 {[%emt 0:05:12]} Rxh4 {[%emt 0:00:30]} 31. Qxf7 {[%emt 0:00:08]} Rf8 {[%emt 0:06:06]} 32. Qg7 {[%emt 0:03:47]} Rxe4 {[%emt 0:08:02]} 33. Nxe4 {[%emt 0:00:08]} Qd8 {[%emt 0:03:02]} 34. Nxc5 {[%emt 0:02:02]} Nxc5 {[%emt 0:04:28]} 35. Rxd4 {[%emt 0:00:05]} Qxd4 {[%emt 0:03:18]} 36. Qxf8+ {[%emt 0:00:05]} Kc7 {[%emt 0:02:25]} 37. Qe7+ {[%emt 0:02:14]} Nd7 {[%emt 0:00:13]} 38. h4 {[%emt 0:00:54]} Qxb2 {[%emt 0:01:26]} 39. Qxe6 {[%emt 0:01:59]} Qa1+ {[%emt 0:00:16]} 40. Kh2 {[%emt 0:00:03]} Qxe5+ {[%emt 0:00:08]} 0-1

[Event "Mitropa Cup Women 2024"]
[Site "Apolda"]
[Date "2024.02.15"]
[Round "1.20"]
[White "Rybackova, Lucie"]
[Black "Mihelic, Vesna"]
[Result "1/2-1/2"]
[ECO "E06"]
[WhiteElo "1970"]
[BlackElo "2112"]
[Annotator "NA RC"]
[PlyCount "109"]
[EventDate "2024.02.15"]
[EventType "team-tourn"]
[EventCountry "GER"]
[SourceTitle "playchess.com"]
[Source "ChessBase"]
[SourceQuality "1"]
[WhiteTeam "Czech Republic"]
[BlackTeam "Slovenia"]
[WhiteTeamCountry "CZE"]
[BlackTeamCountry "SLO"]
[TimeControl "40/5400+30:1800+30"]

1. d4 {[%emt 0:00:04]} d5 {[%emt 0:00:09]} 2. Nf3 {[%emt 0:00:16]} Nf6 {[%emt 0:00:10]} 3. g3 {[%emt 0:00:11]} e6 {[%emt 0:00:18]} 4. Bg2 {[%emt 0:00:13]} c5 {[%emt 0:08:00]} 5. O-O {[%emt 0:01:26]} Nc6 {[%emt 0:01:13]} 6. c4 {[%emt 0:00:27]} Be7 {[%emt 0:12:09]} 7. cxd5 {[%emt 0:01:18]} Nxd5 {[%emt 0:00:29]} 8. dxc5 {[%emt 0:03:44]} O-O {[%emt 0:05:22]} 9. a3 {[%emt 0:17:38]} Bxc5 {[%emt 0:05:17]} 10. e4 {[%emt 0:06:35]} Nde7 {[%emt 0:26:07]} 11. b4 {[%emt 0:16:20]} Bd4 {[%emt 0:02:29]} 12. Nxd4 {[%emt 0:01:47]} Nxd4 {[%emt 0:03:35]} 13. e5 {[%emt 0:06:37]} Nec6 {[%emt 0:04:32]} 14. Be3 {[%emt 0:06:59]} a5 {[%emt 0:07:44]} 15. bxa5 {[%emt 0:17:43]} Rxa5 {[%emt 0:00:53]} 16. f4 {[%emt 0:00:18]} f6 {[%emt 0:07:06]} 17. Bxc6 {[%emt 0:04:44]} Nxc6 {[%emt 0:00:32]} 18. Qxd8 {[%emt 0:00:18]} Nxd8 {[%emt 0:00:02]} 19. exf6 {[%emt 0:00:23]} gxf6 {[%emt 0:00:21]} 20. Nc3 {[%emt 0:01:49]} Nc6 {[%emt 0:03:09]} 21. Bb6 {[%emt 0:02:47]} Ra6 {[%emt 0:01:33]} 22. Bc5 {[%emt 0:00:28]} Rd8 {[%emt 0:00:50]} 23. Rfd1 {[%emt 0:01:19]} Kg7 {[%emt 0:07:16]} 24. Rxd8 {[%emt 0:02:42]} Nxd8 {[%emt 0:00:02]} 25. Rd1 {[%emt 0:02:29]} Nc6 {[%emt 0:01:03]} 26. Ne4 {[%emt 0:01:49]} Ra5 {[%emt 0:01:50]} 27. Bb4 {[%emt 0:00:54]} Ra4 {[%emt 0:00:40]} 28. Nd6 {[%emt 0:00:49]} Nxb4 {[%emt 0:00:52]} 29. axb4 {[%emt 0:00:02]} Bd7 {[%emt 0:00:44]} 30. Nf5+ {[%emt 0:02:03]} exf5 {[%emt 0:00:19]} 31. Rxd7+ {[%emt 0:00:09]} Kg6 {[%emt 0:00:36]} 32. Rxb7 {[%emt 0:00:09]} Ra2 {[%emt 0:00:33]} 33. b5 {[%emt 0:01:05]} Rb2 {[%emt 0:00:15]} 34. b6 {[%emt 0:01:00]} h6 {[%emt 0:00:37]} 35. Kh1 {[%emt 0:00:44]} h5 {[%emt 0:00:25]} 36. Kg1 {[%emt 0:00:10]} h4 {[%emt 0:00:42]} 37. gxh4 {[%emt 0:00:20]} Kh5 {[%emt 0:00:05]} 38. Rb8 {[%emt 0:00:43]} Kg4 {[%emt 0:00:27]} 39. Kf1 {[%emt 0:00:32]} Kxf4 {[%emt 0:00:59]} 40. b7 {[%emt 0:00:11]} Kf3 {[%emt 0:00:14]} 41. Ke1 {[%emt 0:30:08]} f4 {[%emt 0:30:41]} 42. h5 {[%emt 0:00:14]} Re2+ {[%emt 0:00:00]} 43. Kd1 {[%emt 0:00:00]} Re7 {[%emt 0:00:00]} 44. h6 {[%emt 0:00:00]} Kf2 {[%emt 0:00:00]} 45. Kd2 {[%emt 0:00:00]} f3 {[%emt 0:00:00]} 46. Kd3 {[%emt 0:00:00]} Kf1 {[%emt 0:00:00]} 47. Rf8 {[%emt 0:00:00]} Rxb7 {[%emt 0:00:00]} 48. Rxf6 {[%emt 0:00:00]} f2 {[%emt 0:00:00]} 49. Ke3 {[%emt 0:00:00]} Rb3+ {[%emt 0:03:40]} 50. Kf4 {[%emt 0:00:00]} Kg2 {[%emt 0:00:41]} 51. Kg4 {[%emt 0:00:00]} f1=Q {[%emt 0:00:44]} 52. Rxf1 {[%emt 0:00:00]} Kxf1 {[%emt 0:00:03]} 53. h7 {[%emt 0:00:00]} Rb8 {[%emt 0:00:18]} 54. Kg5 {[%emt 0:00:00]} Kg2 {[%emt 0:01:44]} 55. Kg6 {[%emt 0:00:00]} 1/2-1/2

[Event "Mitropa Cup Women 2024"]
[Site "Apolda"]
[Date "2024.02.16"]
[Round "2.1"]
[White "Polterauer, Chiara"]
[Black "Heinemann, Josefine"]
[Result "1/2-1/2"]
[ECO "B90"]
[WhiteElo "2189"]
[BlackElo "2361"]
[Annotator "TA"]
[PlyCount "85"]
[EventDate "2024.02.15"]
[EventType "team-tourn"]
[EventCountry "GER"]
[SourceTitle "playchess.com"]
[Source "ChessBase"]
[SourceQuality "1"]
[WhiteTeam "Austria"]
[BlackTeam "Germany"]
[WhiteTeamCountry "AUT"]
[BlackTeamCountry "GER"]
[TimeControl "40/5400+30:1800+30"]

{[%evp 12,85,16,19,35,15,15,0,0,0,0,0,10,0,0,0,0,0,0,0,0,0,0,0,0,0,0,-7,0,0,0,0,18,14,13,24,26,15,21,0,60,68,100,97,108,0,0,0,0,0,-5,0,-7,-6,0,0,0,0,0,0,0,0,-5,-8,-8,-8,0,0,0,0,0,0,0,0,0,0]} 1. e4 {[%emt 0:00:01]} c5 {[%emt 0:00:07]} 2. Nf3 {[%emt 0:00:05]} d6 {[%emt 0:00:05]} 3. d4 {[%emt 0:00:07]} cxd4 {[%emt 0:00:06]} 4. Nxd4 {[%emt 0:00:06]} Nf6 {[%emt 0:00:07]} 5. Nc3 {[%emt 0:00:06]} a6 {[%emt 0:00:06]} 6. h3 {[%emt 0:00:11]} e5 {[%emt 0:00:27]} 7. Nde2 {[%emt 0:00:07]} h5 {[%emt 0:00:09]} 8. Bg5 {[%emt 0:00:15]} Be6 {[%emt 0:00:22]} 9. Bxf6 {[%emt 0:00:23]} Qxf6 {[%emt 0:00:04]} 10. Nd5 {[%emt 0:00:04]} Qd8 {[%emt 1:33:57]} 11. Qd3 {[%emt 0:00:23]} g6 {[%emt 0:00:00]} 12. O-O-O {[%emt 0:00:20]} Nd7 {[%emt 0:00:00]} 13. Nec3 {[%emt 0:00:41]} Nc5 {[%emt 0:00:00]} 14. Qe2 {[%emt 0:00:37]} b5 {[%emt 0:00:00]} 15. a3 {[%emt 0:01:31]} Rb8 {[%emt 0:00:00]} 16. Kb1 {[%emt 0:01:01]} Bg7 {[%emt 0:00:00]} 17. h4 {[%emt 0:00:29]} Bd7 {[%emt 0:00:00]} 18. Qe3 {[%emt 0:02:56]} a5 {[%emt 0:00:00] next ...b4 is good for Black.} 19. b4 {[%emt 0:00:58]} Ne6 {[%emt 0:00:00]} 20. Be2 {[%emt 0:10:45]} Nd4 {[%emt 0:00:00]} 21. Qg5 {[%emt 0:06:16]} Bc6 {[%emt 0:00:00]} 22. Qxd8+ {[%emt 0:15:46]} Kxd8 {[%emt 0:00:00]} 23. Bd3 {[%emt 0:00:14]} Ra8 {[%emt 0:00:00][%cal Bb8a8,Ba8a7,Ba7b7][%mdl 32]} 24. Kb2 {[%emt 0:04:19]} Ra7 {[%emt 0:00:00]} 25. Ra1 {[%emt 0:06:47]} Kd7 {[%emt 0:00:00]} ({Black should play} 25... f5 $11) 26. a4 $14 {[%emt 0:14:58]} axb4 {[%emt 0:00:00]} 27. Nxb5 {[%emt 0:01:01] A dynamic duo of knights.} Rb7 {[%emt 0:00:00] [#] Wards off Nb6+} 28. Nxb4 {[%emt 0:09:17] White is more active.} (28. Nxd4 $1 $16 exd4 29. a5) 28... Nxb5 $11 {[%emt 0:00:00] The position is equal.} 29. axb5 {[%emt 0:00:29]} Bxb5 {[%emt 0:00:00]} 30. Bxb5+ {[%emt 0:00:31]} Rxb5 {[%emt 0:00:00]} 31. Ra7+ {[%emt 0:00:47]} Ke6 {[%emt 0:00:00]} 32. c3 {[%emt 0:02:31]} Rhb8 {[%emt 0:00:00]} 33. Kc2 {[%emt 0:03:22]} Bf6 {[%emt 0:00:00]} 34. Kd3 {[%emt 0:03:52]} Bd8 {[%emt 0:00:00]} 35. f3 {[%emt 0:04:54]} Bb6 {[%emt 0:00:00]} 36. Ra2 {[%emt 0:00:27]} Bc5 {[%emt 0:00:00]} 37. Na6 {[%emt 0:00:50]} Rc8 {[%emt 0:00:00] Against Nc7+} 38. g4 {[%emt 0:02:22]} Kf6 {[%emt 0:00:00]} 39. gxh5 {[%emt 0:02:28]} gxh5 {[%emt 0:00:00]} 40. Rha1 {[%emt 0:02:10]} Rb3 {[%emt 0:02:48] [#] aiming for ...Bd4.} 41. Kc2 {[%emt 0:33:22]} Rb5 {[%emt 0:30:19]} 42. Kd3 {[%emt 0:00:50] Against Bd4} Rb3 {[%emt 0:00:04] Strongly threatening ...Bd4.} 43. Kc2 {[%emt 0:01:45] Weighted Error Value: White=0.07 (flawless) /Black=0.07 (flawless) .  Mistake:       	White=1     	Black=1      Inaccurate:     	---       	Black=1      OK:         	White=22    	Black=12     Best:        	White=1     	Black=1} 1/2-1/2